Cogmind - Beta 12 @@@ ROGUE MODE // 2023.03.31 @ 23:09:25 Player: Jezoensis Result: Destroyed by Combat Programmer with EMDS Performance ------------- Evolutions (9) 4500 Regions Visited (27) 5400 Robots Destroyed (299) 1495 Value Destroyed (11965) 11965 Prototype IDs (243) 4860 Alien Tech Used (1) 200 Bonus (9707) 9707 TOTAL SCORE: 38127 Bonus ------- High Alert Combat Kills 1053 Follower Combat Kills 342 Entered Garrisons 800 Used RIF Installer 3000 Entered DSFs 500 Aligned with FarCom 300 Met Data Miner 300 Used Data Conduit 3000 Pursued by Intercept 500 Friendly Fire -88 Cogmind --------- Core Integrity 0/1600 Matter 98/300 Energy 99/100 System Corruption 39% Temperature Cool (0) Movement Core (50) Location -1/Command Parts ------- > --- POWER (2) -------- (None) > --- PROPULSION (4) --- (None) > --- UTILITY (15) ----- (None) > --- WEAPON (5) ------- (None) > --- INVENTORY (5) ---- Matter Compressor (94) Improved Weapon Cycler Advanced Cloaking Device Relay Coupler [Grunt] (32) Remote Datajack Peak State ------------ > --- POWER ------------ Particle Reactor Quantum Reactor > --- PROPULSION ------- Biometal Heavy Treads Biometal Heavy Treads > --- UTILITY ---------- Experimental Power Amplifier Coolant Network High-capacity Storage Unit Enhanced Optical Array Advanced Targeting Computer Experimental Targeting Computer Experimental Core Analyzer Advanced Weapon Cycler Advanced Transmission Jammer Advanced Cloaking Device Improved Focal Shield Improved Force Field Relay Coupler [NC] Relay Coupler [Grunt] > --- WEAPON ----------- Enhanced Nova Cannon KE Penetrator KE Penetrator KE Penetrator Railgun > --- INVENTORY -------- Light Particle Reactor Light Particle Reactor Light Particle Reactor Armored Heavy Treads Advanced Heavy Siege Treads Matter Compressor Improved Weapon Cycler Experimental Thermal Shield Relay Coupler [Grunt] Relay Coupler [Sentry] Long-range Tractor Beam Advanced Field Recycling Unit KE Penetrator Railgun Railgun Hellfire Missile Launcher Remote Datajack Thunder Hammer [Rating: 193] Favorites ----------- Power Nuclear Core Engine Heavy Ion Engine Power Core Nuclear Core Reactor Quantum Reactor Propulsion Improved Heavy Treads Treads Improved Heavy Treads Wheel Wheel Utility High-capacity Storage Unit Device Improved Transmission Jammer Storage High-capacity Storage Unit Processor Advanced Visual Processing Unit Hackware System Mapper Protection Improved Medium Armor Plating Weapon Gauss Rifle Energy Gun Improved Medium Laser Energy Cannon Enhanced Nova Cannon Ballistic Gun Gauss Rifle Launcher Missile Launcher Special Weapon Remote Datajack Impact Weapon Thunder Hammer Slashing Weapon Katana Special Melee Weapon Improved Datajack Build | -11 -10 -10 -9 -9 -9 -8 -8 -8 -8 -8 -7 -7 -7 -6 -6 -6 -6 -5 -5 -5 -4 -4 -3 -2 -2 -1 -1 ------- Run | Jun Mat Min Mat Min Exi Min Mat Gar Mat Gar Fac Low Low Fac Low Low Dat Pro Fac Gar Fac Gar Res Res DSF Acc Com Slots Evolved 18 | . . . 2 . . . 2 . . . 2 . . 2 . . . . 2 . 2 . 2 2 . 2 . Power . | . . . . . . . . . . . . . . . . . . . . . . . . . . . . Propulsion 2 | . . . 1 . . . . . . . . . . 1 . . . . . . . . . . . . . Utility 13 | . . . 1 . . . 1 . . . 2 . . 1 . . . . 1 . 2 . 2 1 . 2 . Weapon 3 | . . . . . . . 1 . . . . . . . . . . . 1 . . . . 1 . . . Parts Attached 667 | 9 15 29 58 5 2 6 49 44 60 29 17 12 . 59 12 6 14 19 20 23 18 33 21 8 23 52 24 Power 33 | 1 . 2 3 . . . 3 . 2 . . 1 . 3 . . 1 . 1 2 1 1 . 1 4 3 4 Engine 10 | 1 . 2 3 . . . 3 . 1 . . . . . . . . . . . . . . . . . . Core 8 | . . . . . . . . . 1 . . 1 . 3 . . 1 . 1 . . 1 . . . . . Reactor 15 | . . . . . . . . . . . . . . . . . . . . 2 1 . . 1 4 3 4 Propulsion 70 | 4 3 11 13 3 . 1 5 1 7 1 5 . . 4 . . . 2 1 2 2 . . . 2 1 2 Treads 45 | . 1 5 5 1 . 1 2 1 7 1 5 . . 4 . . . 2 1 2 2 . . . 2 1 2 Leg . | . . . . . . . . . . . . . . . . . . . . . . . . . . . . Wheel 25 | 4 2 6 8 2 . . 3 . . . . . . . . . . . . . . . . . . . . Hover . | . . . . . . . . . . . . . . . . . . . . . . . . . . . . Flight . | . . . . . . . . . . . . . . . . . . . . . . . . . . . . Utility 324 | 2 5 9 23 2 . 2 23 22 29 13 6 8 . 30 6 3 5 9 15 10 12 16 16 5 12 32 9 Device 246 | 1 2 8 13 2 . 2 17 17 24 9 3 6 . 26 5 2 5 9 10 10 7 9 13 3 10 26 7 Storage 11 | 1 2 1 2 . . . . . . . . . . . . . . . 1 . . 1 . . 1 2 . Processor 17 | . . . 1 . . . 3 . 1 . 2 1 . . . 1 . . . . 2 . 1 1 1 2 1 Hackware 20 | . 1 . 1 . . . 2 . 2 . 1 . . . . . . . 3 . 1 4 1 1 . 2 1 Protection 30 | . . . 6 . . . 1 5 2 4 . 1 . 4 1 . . . 1 . 2 2 1 . . . . Artifact . | . . . . . . . . . . . . . . . . . . . . . . . . . . . . Weapon 240 | 2 7 7 19 . 2 3 18 21 22 15 6 3 . 22 6 3 8 8 3 9 3 16 5 2 5 16 9 Energy Gun 46 | . . 3 10 . . 1 1 6 9 2 1 . . 7 1 . 1 . 1 3 . . . . . . . Energy Cannon 12 | . . . . . . . . 1 . . . . . . . . . . . . 1 1 . 1 2 4 2 Ballistic Gun 68 | 2 4 1 4 . . 1 7 2 3 2 . 1 . 5 2 1 3 4 1 2 1 6 4 . 2 6 4 Ballistic Cannon . | . . . . . . . . . . . . . . . . . . . . . . . . . . . . Launcher 41 | . . 3 4 . . 1 3 5 4 5 . 1 . 2 1 1 3 1 . 2 1 3 . . . . 1 Special Weapon 19 | . 3 . 1 . 1 . . . . . . . . . . . . 1 . . . 4 1 1 1 5 1 Impact Weapon 4 | . . . . . . . . . . . . . . . . . . . . . . 2 . . . 1 1 Slashing Weapon 49 | . . . . . 1 . 7 7 6 6 4 1 . 8 2 1 1 2 1 2 . . . . . . . Piercing Weapon . | . . . . . . . . . . . . . . . . . . . . . . . . . . . . Special Melee Weapon 1 | . . . . . . . . . . . 1 . . . . . . . . . . . . . . . . Unidentified Prototypes 14 | . . . 3 . . . 1 . 3 . 1 1 . 1 . . . 1 2 . 1 . . . . . . Parts Lost 55 | . . 4 6 . . 2 1 6 . . . . . 1 . . 1 . . . 2 1 2 . 4 2 23 Power 10 | . . 2 . . . . 1 . . . . . . . . . . . . . 1 . 1 . 1 . 4 Propulsion 10 | . . . 5 . . 1 . . . . . . . . . . . . . . . . . . . . 4 Utility 15 | . . . 1 . . . . 2 . . . . . 1 . . . . . . 1 1 1 . 1 1 6 Weapon 20 | . . 2 . . . 1 . 4 . . . . . . . . 1 . . . . . . . 2 1 9 Highest Loss Streak 23 | . . 2 2 . . 1 1 4 . . . . . 1 . . 1 . . . 2 1 2 . 3 2 23 To Critical Strikes . | . . . . . . . . . . . . . . . . . . . . . . . . . . . . Average Slot Usage (%) 92 | . 100 99 99 100 100 98 95 89 99 99 99 99 100 92 87 87 76 86 87 83 87 89 88 90 89 88 80 Engine 3 | . 14 13 11 11 11 11 9 9 4 . . . . . . . . . . . . . . . . . . Core 4 | . . . . . . . . . 4 9 7 10 14 12 12 12 12 12 11 7 2 1 3 . . . . Reactor 1 | . . . . . . . . . . . . . . . . . . . . 3 7 8 4 7 6 7 6 Treads 13 | . 1 3 11 11 11 9 9 9 25 27 22 21 21 17 12 12 12 12 11 11 10 10 9 8 8 7 6 Wheel 5 | . 26 24 20 21 22 22 13 9 . . . . . . . . . . . . . . . . . . . Device 11 | . 14 14 9 11 11 11 7 8 8 7 13 13 14 11 12 11 4 12 8 5 14 10 14 19 24 26 24 Storage 7 | . 14 14 11 11 11 11 9 9 9 9 7 7 7 6 6 6 6 6 5 5 5 5 4 4 5 6 2 Processor 14 | . . . 11 11 11 11 17 13 18 18 22 21 21 18 18 19 25 25 14 11 12 15 11 8 10 8 14 Hackware 4 | . . . . . . . 2 . . . 1 . . . . . . . 14 10 8 17 22 20 12 10 6 Protection 1 | . . . 1 . . . . 4 . 1 . . . 6 5 6 3 . . 5 6 2 . . . . . Energy Gun 5 | . . 18 10 11 . 11 16 15 6 4 2 . . 3 3 6 2 2 . 1 . . . . . . . Ballistic Gun 12 | . 26 8 10 11 . 11 6 3 15 17 12 14 14 12 13 6 4 14 16 15 16 15 11 16 16 14 11 Slashing Weapon 2 | . . . . . 11 . 3 6 4 4 3 6 7 2 1 4 . 1 4 3 1 . . . . . . Naked Turns 22 | . . . . . . . . . . . . . . . . . . . . . . . . . . . 22 Heaviest Build 145 | 13 28 50 58 55 52 55 67 74 64 69 62 68 68 88 78 77 90 82 100 107 117 125 108 120 136 138 145 Greatest Support 150 | 32 26 26 26 26 26 26 28 28 71 71 77 69 69 150 150 150 150 150 150 150 150 150 150 150 150 150 150 Greatest Overweight (x) 36 | . 1 3 5 2 1 2 2 3 2 . . . . . . . . . . . . . . . . . 36 Average Overweight (x) . | . . 1 1 2 1 2 2 2 . . . . . . . . . . . . . . . . . . . Largest Inventory Capacity 20 | 8 15 20 20 20 20 20 20 20 20 20 20 20 20 20 20 20 20 20 20 20 20 20 20 20 20 20 20 Average Capacity 19 | 7 14 15 19 20 20 20 20 20 20 20 20 20 20 20 20 20 20 20 20 20 20 20 20 20 20 20 19 Most Carried 20 | 8 15 17 20 20 20 20 20 20 20 20 20 20 20 20 20 20 20 20 20 20 20 20 20 20 20 20 20 Average Carried 19 | 4 13 14 18 19 19 18 19 19 19 19 19 19 20 19 20 20 18 19 18 19 19 19 19 19 19 19 16 Final Capacity 20 | 8 15 20 20 20 20 20 20 20 20 20 20 20 20 20 20 20 20 20 20 20 20 20 20 20 20 20 5 Final Carried 20 | 8 15 17 20 20 20 19 20 20 20 20 20 20 20 20 20 20 20 20 20 20 19 20 20 20 20 20 5 Class Distribution -------------------- 24% | Mutant 15% | Assassin 11% | Skirmisher 10% | Scavenger-Mutant 8% | Hacker-Mutant 6% | Bothacker-Mutant 4% | Scavenger-Skirmisher 3% | Hacker-Assassin Dominant Class ---------------- Mutant | -10/Materials Mutant | -10/Mines Scavenger-Mutant | -9/Materials Scavenger-Mutant | -9/Mines Scavenger-Mutant | -9/Exiles Scavenger-Skirmisher | -8/Mines Scavenger-Skirmisher | -8/Materials Mutant | -8/Garrison Skirmisher | -8/Materials Mutant | -8/Garrison Assassin | -7/Factory Assassin | -7/Lower Caves Assassin | -7/Lower Caves Assassin | -6/Factory Mutant | -6/Lower Caves Assassin | -6/Lower Caves Mutant | -6/Data Miner Skirmisher | -5/Proximity Caves Hacker-Assassin | -5/Factory Hacker-Mutant | -5/Garrison Hacker-Mutant | -4/Factory Hacker-Mutant | -4/Garrison Bothacker-Assassin | -3/Research Bothacker-Mutant | -2/Research Bothacker-Gunner | -2/DSF Bothacker-Mutant | -1/Access Bothacker-Mutant | -1/Command Resources | -11 -10 -10 -9 -9 -9 -8 -8 -8 -8 -8 -7 -7 -7 -6 -6 -6 -6 -5 -5 -5 -4 -4 -3 -2 -2 -1 -1 ----------- Run | Jun Mat Min Mat Min Exi Min Mat Gar Mat Gar Fac Low Low Fac Low Low Dat Pro Fac Gar Fac Gar Res Res DSF Acc Com Matter Collected 12386 | 304 153 718 823 88 50 71 625 648 1022 480 174 393 34 819 225 361 253 398 250 469 508 951 525 70 454 1185 335 Remotely 4484 | . . . . . . . . . . . . 332 . 201 181 . 136 156 137 194 395 657 497 . 352 1009 237 Salvage Created 12143 | 56 130 98 1095 87 . 78 889 1013 1108 458 233 254 . 901 181 248 195 295 290 824 653 553 513 147 513 1331 . Parts 644 | 7 16 . 66 5 . 7 67 42 67 48 8 5 . 53 14 15 6 11 28 30 32 16 11 4 37 49 . Haulers Intercepted 9 | . . . 4 . . . 3 . 1 . . . . . . . . . . . 1 . . . . . . Recyclers Shooed 6 | 1 . . . . . . . . . . . . . . . . . . . . 2 . 1 . . 2 . Parts Field Recycled 17 | . . . . . . . . . . . . . . . . . . . . . . . 7 6 4 . . Retrieved Matter 382 | . . . . . . . . . . . . . . . . . . . . . . . 110 212 60 . . Parts Self-Destructed 25 | . . . . . . . . . . . . . . . 12 6 . 7 . . . . . . . . . Prevented 14 | . . . . . . . . . . . . 4 . . 2 8 . . . . . . . . . . . Kills | -11 -10 -10 -9 -9 -9 -8 -8 -8 -8 -8 -7 -7 -7 -6 -6 -6 -6 -5 -5 -5 -4 -4 -3 -2 -2 -1 -1 ------- Run | Jun Mat Min Mat Min Exi Min Mat Gar Mat Gar Fac Low Low Fac Low Low Dat Pro Fac Gar Fac Gar Res Res DSF Acc Com Combat Hostiles Destroyed 251 | . 4 14 25 2 . 5 23 25 23 25 . 2 . 12 7 4 4 4 2 20 9 14 5 . 7 13 2 Melee 1 | . . . . . . . . 1 . . . . . . . . . . . . . . . . . . . Guns 143 | . 4 6 16 2 . 1 11 14 14 9 . . . 11 5 2 1 4 2 6 5 7 5 . 6 11 1 Cannons 5 | . . . . . . . . . . . . . . . . . . . . . . 1 . . 1 2 1 AOE 99 | . . 8 9 . . 4 12 8 9 16 . 2 . 1 2 1 3 . . 14 4 6 . . . . . Classes Destroyed 21 | 1 4 1 5 1 . 1 . 1 2 . . . . 1 . . . 2 . . . 1 . . 1 . . Worker 5 | . . . 1 . . . 1 . 1 . . . . . . . . . . . 1 . 1 . . . . Builder 12 | . 2 . . . . . 2 . 2 . 1 . . 1 . . . . 1 . 1 . . . . 2 . Tunneler 7 | 3 . . 1 . . . . . . . . . . 2 . . . . 1 . . . . . . . . Hauler 9 | . . . 4 . . . 3 . 1 . . . . . . . . . . . 1 . . . . . . Recycler 17 | . . . 2 . . . 1 . 3 . 3 . . 1 . . . . 1 . 2 . 1 1 . 2 . Operator 3 | . 1 . . . . . . . . . . . . 1 . . . . 1 . . . . . . . . Watcher 8 | . . . 2 . . . 2 . 2 . . . . 1 . . . . 1 . . . . . . . . Swarmer 90 | . 3 . 11 . . 4 14 8 9 18 . . . 1 7 . . . . 5 5 5 . . . . . Cutter 3 | . . . . . . . . . . . . . . . . . . . . . . 1 . . 2 . . Grunt 68 | . 1 . 7 1 . . 3 14 8 4 . 2 . 5 . 2 . 3 . 14 . 2 . . . 2 . Brawler 5 | . . . . . . . . . 1 . . . . 1 . . . . . . . 1 2 . . . . Duelist 4 | . . . . 1 . . . . . . . . . . . 1 . . . . . 1 . . . 1 . Protector 1 | . . . . . . . . . 1 . . . . . . . . . . . . . . . . . . Sentry 30 | . . . 7 . . . 6 2 4 3 . . . 3 . . . . . 1 . 1 1 . . 2 . Specialist 4 | . . . . . . . . . . . . . . . . . . 1 . . . . 2 . 1 . . Hunter 13 | . . . . . . 1 . . . . . . . . . . . . . . 4 2 . . 3 3 . Programmer 6 | . . . . . . . . . . . . . . 1 . 1 . . 2 . . 1 . . . 1 . Heavy 1 | . . . . . . . . . . . . . . . . . . . . . . . . . 1 . . Behemoth 2 | . . . . . . . . 1 . . . . . 1 . . . . . . . . . . . . . M Guard 1 | . . . . . . . . . . . . . . . . . . . . . . . . . . . 1 Enhanced Grunt 4 | . . . . . . . . . . . . . . . . . 4 . . . . . . . . . . Tracker 2 | . . . . . . . . . . . . . . . . . . . . . . . . . . 2 . Combat Programmer 3 | . . . . . . . . . . . . . . . . . . . . . . . . . . 2 1 Packrat 2 | . . . . . . . . . . . . 2 . . . . . . . . . . . . . . . Samaritan 2 | . . . . . . . . . . . . . . . . . . 2 . . . . . . . . . Assembled 14 | . . 14 . . . . . . . . . . . . . . . . . . . . . . . . . Best Kill Streak 16 | 3 4 9 6 2 . 4 5 7 5 7 1 2 . 4 7 3 2 3 3 16 12 5 7 1 3 5 2 Combat Bots Only 16 | . 4 9 5 2 . 4 4 7 5 7 . 2 . 3 7 3 2 3 2 16 6 5 5 . 3 3 2 Max Kills in Single Turn 4 | 1 1 3 4 2 . 3 4 3 4 4 1 1 . 1 2 1 2 2 1 3 3 3 2 1 1 2 1 Gunslinging 1 | . . . . 1 . . . 1 . . . . . . 1 . . 1 . . . . . . . . . Exploded 4 | . . 3 4 . . 3 4 3 3 4 . 1 . 1 2 1 2 . . 3 3 3 . . . . . Melee 1 | . . . . . . . . 1 . . . . . . . . . . . . . . . . . . . Uniques/NPCs Destroyed 1 | . . . . . . . . . . . . . . . . . 1 . . . . . . . . . . Data Miner (-6/Data Miner) Combat | -11 -10 -10 -9 -9 -9 -8 -8 -8 -8 -8 -7 -7 -7 -6 -6 -6 -6 -5 -5 -5 -4 -4 -3 -2 -2 -1 -1 -------- Run | Jun Mat Min Mat Min Exi Min Mat Gar Mat Gar Fac Low Low Fac Low Low Dat Pro Fac Gar Fac Gar Res Res DSF Acc Com Damage Taken 17458 | . 186 504 860 78 . 147 571 1234 403 388 . 11 . 844 218 141 574 254 104 466 1068 594 886 . 660 1572 5695 Core 2532 | . 25 87 52 31 . 20 45 186 49 31 . . . 76 . 13 34 14 44 41 43 30 70 . 41 95 1505 Absorbed by Shields 3280 | . . . . . . . 108 153 . . . 4 . 261 84 30 78 108 . 180 378 448 192 . 320 729 207 Reduced by Siege Mode 919 | . . . . . . . . . . . . . . . . 11 66 14 5 24 30 34 127 . 55 63 490 Core Remaining (%) 83 | 100 . 55 . . . 74 . . . 43 . . 100 . . . . 83 . 91 . 93 94 . 97 . . Volleys Fired 676 | 7 22 28 74 4 . 5 52 53 43 26 1 5 . 47 19 16 9 10 7 19 23 47 23 7 22 79 28 Largest 5 | 2 2 2 2 2 . 2 3 3 3 3 1 3 . 3 3 3 3 3 4 4 4 4 4 4 5 5 5 Hottest 254 | 40 100 130 100 79 . 79 135 137 137 148 81 95 . 116 60 63 117 58 78 157 120 163 93 120 248 252 254 Shots Fired 1619 | 14 41 42 141 8 . 8 140 119 115 59 1 12 . 127 26 28 22 30 25 63 72 89 81 10 70 199 77 Gun 1376 | 14 38 30 135 8 . 6 135 104 110 50 1 8 . 121 24 23 3 29 25 51 66 58 78 4 58 146 51 Cannon 81 | . . . . . . . . 5 . . . . . . . . . . . . 4 12 . 6 8 34 12 Launcher 117 | . . 12 5 . . 2 5 10 5 9 . 4 . 6 2 5 19 1 . 12 2 7 . . . . 11 Special 45 | . 3 . 1 . . . . . . . . . . . . . . . . . . 12 3 . 4 19 3 Kinetic 983 | 14 38 9 67 4 . 3 41 26 76 35 . 8 . 83 22 12 2 23 21 38 66 58 78 4 58 146 51 Thermal 473 | . 3 21 69 4 . 3 94 78 34 15 1 . . 38 2 11 1 6 4 13 4 12 . 6 8 34 12 Explosive 78 | . . 12 5 . . 2 5 4 5 8 . . . . . . 12 1 . 6 2 5 . . . . 11 Electromagnetic 44 | . . . . . . . . 11 . 1 . 4 . 6 2 5 7 . . 6 . 2 . . . . . Robot Hit Streak 45 | 8 4 15 12 14 . 16 16 22 11 10 4 8 . 14 4 10 11 23 11 40 17 17 22 6 24 45 23 Robot Miss Streak 7 | 2 7 2 5 . . 2 4 4 2 2 . 1 . 4 1 2 1 1 2 3 2 3 2 . 1 3 1 Penetration Max 1 | . . . . . . . . . 1 . . 1 . 1 1 . . . . . . 1 1 . . 1 . Secondary Targets 24 | . 1 1 1 1 . . 1 1 . . . . . . 1 . . 2 1 1 3 2 1 . 2 5 . Max Gunslinging Chain 1 | . 1 1 1 1 . . 1 1 . . . . . . 1 . . 1 1 1 1 1 1 . 1 1 . Shots Hit Robots 1107 | 10 19 25 99 8 . 3 87 87 80 21 8 10 . 89 9 21 4 26 19 44 55 57 69 4 54 138 61 Core Hits 611 | 3 9 29 43 3 . 6 45 36 45 26 2 6 . 37 9 7 24 13 8 49 32 33 23 2 18 50 53 Critical Kills 1 | . . . . . . . . . . . . . . . . . 1 . . . . . . . . . . Critical Parts Destroyed 12 | . . . . . . . . . . . . . . 3 . . . . . . 1 . 1 . . 6 1 Critical Strikes 43 | . . 1 8 . . . 3 8 4 . . . . 6 . 1 1 1 . . 1 . 1 . . 6 2 Burn 27 | . . 1 8 . . . 3 8 2 . . . . 3 . 1 . 1 . . . . . . . . . Destroy 14 | . . . . . . . . . . . . . . 3 . . 1 . . . 1 . 1 . . 6 2 Sever 2 | . . . . . . . . . 2 . . . . . . . . . . . . . . . . . . Melee Attacks 131 | . . . . . . . 17 14 16 9 15 3 . 19 2 1 1 3 7 8 6 3 7 . . . . Impact 10 | . . . . . . . . . . . . . . . . . . . . . . 3 7 . . . . Slashing 118 | . . . . . . . 17 14 16 9 12 3 . 19 2 1 1 3 7 8 6 . . . . . . Piercing . | . . . . . . . . . . . . . . . . . . . . . . . . . . . . Sneak Attacks 19 | . . . . . . . 1 . 3 . 5 2 . 3 . . 1 1 2 . . . 1 . . . . Combat Hostiles 1 | . . . . . . . . . 1 . . . . . . . . . . . . . . . . . . Follow-up Attacks . | . . . . . . . . . . . . . . . . . . . . . . . . . . . . Damage Inflicted 35433 | 118 284 920 2377 125 . 349 2160 2320 2727 1584 253 451 . 2144 275 660 1635 696 609 2492 1699 1828 1900 99 1289 3680 2759 Guns 21167 | 118 284 361 1601 125 . 47 1487 1549 1748 465 23 138 . 1665 192 419 35 558 449 918 1089 884 1774 99 1059 3093 987 Cannons 1187 | . . . . . . . . 57 . . . . . . . . . . . . . 208 . . 230 532 160 Explosions 11516 | . . 559 776 . . 302 619 679 693 1119 . 152 . 165 83 241 1535 61 . 1574 610 736 . . . . 1612 Melee 1446 | . . . . . . . 54 35 286 . 230 161 . 262 . . 65 77 150 . . . 126 . . . . Ramming 117 | . . . . . . . . . . . . . . 52 . . . . 10 . . . . . . 55 . Kinetic 15378 | 118 284 49 673 56 . 12 344 328 1105 242 . 138 . 1069 192 248 21 438 384 692 1089 884 1774 99 1059 3093 987 Thermal 6978 | . . 312 928 69 . 35 1143 1221 643 223 23 . . 596 . 171 14 120 65 285 . 208 . . 230 532 160 Explosive 9793 | . . 559 776 . . 302 619 410 693 1061 . . . . . . 1312 61 . 1087 610 691 . . . . 1612 Electromagnetic 1721 | . . . . . . . . 326 . 58 . 152 . 165 83 241 223 . . 428 . 45 . . . . . Impact 126 | . . . . . . . . . . . . . . . . . . . . . . . 126 . . . . Slashing 1320 | . . . . . . . 54 35 286 . 230 161 . 262 . . 65 77 150 . . . . . . . . Piercing . | . . . . . . . . . . . . . . . . . . . . . . . . . . . . Highest Corruption 35 | . . . 1 1 1 1 . 2 2 . . . . . . 1 1 1 1 1 . 1 13 . 2 5 35 Average Corruption 2 | . . . 1 1 1 1 . 1 1 . . . . . . 1 1 1 1 1 . 1 11 . 1 3 9 Corruption Purged 2 | . . . . . . . . . 2 . . . . . . . . . . . . . . . . . . Corruption Blocked . | . . . . . . . . . . . . . . . . . . . . . . . . . . . . Effects 95 | . . . 6 1 . . . 16 12 . . . . . . 2 2 7 2 5 . 7 8 . 2 5 20 Message Errors 17 | . . . 4 . . . . 5 2 . . . . . . . 1 . 1 1 . 1 1 . 1 . . Matter Fused 20 | . . . . 1 . . . 3 6 . . . . . . . . . . 2 . 2 . . . 1 5 Heat Flow Errors 17 | . . . . . . . . 4 1 . . . . . . 1 . 2 1 1 . 1 2 . 1 1 2 Energy Discharges 10 | . . . . . . . . 2 . . . . . . . 1 1 1 . 1 . . . . . . 4 Parts Rejected 2 | . . . . . . . . . . . . . . . . . . . . . . . . . . . 2 Parts Fused 1 | . . . . . . . . . . . . . . . . . . . . . . 1 . . . . . Data Loss (minor) 5 | . . . . . . . . . . . . . . . . . . 1 . . . . 1 . . 1 2 Data Loss (major) 4 | . . . 1 . . . . . 1 . . . . . . . . 1 . . . . . . . 1 . Misfires 5 | . . . . . . . . 1 . . . . . . . . . 2 . . . . 1 . . 1 . Alerts 1 | . . . . . . . . . . . . . . . . . . . . . . . . . . . 1 Misdirections 3 | . . . . . . . . . . . . . . . . . . . . . . . . . . . 3 Weapon Failures 10 | . . . 1 . . . . 1 2 . . . . . . . . . . . . 2 3 . . . 1 Overload Shots 6 | . . . . . . . . . . . . . . 3 2 1 . . . . . . . . . . . Overflow Damage 776 | . . 14 59 . . 48 71 . 115 165 53 11 . 92 . . 7 . 60 54 . 7 . . . 20 . Projectiles 27 | . . . . . . . . . . . . . . . . . . . . . . 7 . . . 20 . Explosions 448 | . . 14 59 . . 48 71 . 30 165 . . . . . . 7 . . 54 . . . . . . . Melee 301 | . . . . . . . . . 85 . 53 11 . 92 . . . . 60 . . . . . . . . Knockbacks 1 | . . . . . . . . . . . . . . . . . . . . . . . . . . 1 . Impact 1 | . . . . . . . . . . . . . . . . . . . . . . . . . . 1 . Kinetic . | . . . . . . . . . . . . . . . . . . . . . . . . . . . . Secondary . | . . . . . . . . . . . . . . . . . . . . . . . . . . . . Self-Inflicted Damage 136 | . . . 37 . . 61 . 18 . . . . . 20 . . . . . . . . . . . . . Shots 7 | . . . 2 . . 2 . 1 . . . . . 2 . . . . . . . . . . . . . Rammed 9 | . . . . . . . . . . . . . . 4 . . . . 1 . . . . . . 4 . Targets Rammed 11 | . . . . . . . . . . . . . . 5 . . . . 1 . . . . . . 5 . Kicked . | . . . . . . . . . . . . . . . . . . . . . . . . . . . . Crushed 2 | . . . . . . . . . . . . . . 1 . . . . . . . . . . . 1 . Highest Temperature 474 | 6 20 98 215 28 . 28 279 425 345 321 54 107 . 140 14 93 121 216 121 387 252 249 474 180 252 332 97 Average Temperature 86 | 6 9 41 43 14 . 15 102 113 96 83 28 58 . 41 9 27 44 56 36 117 76 111 123 59 68 123 47 Received Heat Transfer 1928 | . 54 60 261 6 . . 170 441 171 72 . 6 . 201 . 42 . 85 . 185 . 31 20 . . 40 83 Effects 8 | . . . . . . . 1 3 . . . . . . . . . . . . . 1 . . . 3 . Energy Bleed 3 | . . . . . . . 1 1 . . . . . . . . . . . . . 1 . . . . . Interference 4 | . . . . . . . . 2 . . . . . . . . . . . . . . . . . 2 . Short Circuit 1 | . . . . . . . . . . . . . . . . . . . . . . . . . . 1 . Siege Activations 27 | . . . . . . . . . . . . . . . 1 1 2 2 1 3 3 3 2 . 3 5 1 Total Turns 426 | . . . . . . . . . . . . . . . 5 11 32 18 12 50 33 69 48 . 39 68 41 Longest Duration 41 | . . . . . . . . . . . . . . . 5 11 17 12 12 28 14 39 36 . 21 29 41 Robots Corrupted 2 | . . . . . . . . 1 . . . . . . . 1 . . . . . . . . . . . Combat Hostiles 2 | . . . . . . . . 1 . . . . . . . 1 . . . . . . . . . . . Parts Fried 9 | . . . . . . . . 3 . . . 1 . . . 2 . . . . . 3 . . . . . Impact Corruptions . | . . . . . . . . . . . . . . . . . . . . . . . . . . . . Robots Melted 1 | . . . . . . . . 1 . . . . . . . . . . . . . . . . . . . Combat Hostiles 1 | . . . . . . . . 1 . . . . . . . . . . . . . . . . . . . Parts Melted 34 | . . . 9 . . . 5 9 4 . . . . 4 . . . 1 . . . 2 . . . . . Heat Transferred 14165 | . . 814 2664 148 . 74 2664 2960 1092 333 37 . . 1369 . 370 37 296 111 420 . 148 . . 185 370 73 Parts Sabotaged . | . . . . . . . . . . . . . . . . . . . . . . . . . . . . Parts Stolen . | . . . . . . . . . . . . . . . . . . . . . . . . . . . . Parts Stripped . | . . . . . . . . . . . . . . . . . . . . . . . . . . . . Power Chain Reactions 2 | . . . . . . . . . . . . 1 . . . . . . . 1 . . . . . . . Missiles Intercepted . | . . . . . . . . . . . . . . . . . . . . . . . . . . . . Alert | -11 -10 -10 -9 -9 -9 -8 -8 -8 -8 -8 -7 -7 -7 -6 -6 -6 -6 -5 -5 -5 -4 -4 -3 -2 -2 -1 -1 ------- Run | Jun Mat Min Mat Min Exi Min Mat Gar Mat Gar Fac Low Low Fac Low Low Dat Pro Fac Gar Fac Gar Res Res DSF Acc Com Peak Influence 1225 | 15 258 26 632 282 . 116 613 1225 813 1119 610 . . 245 . . . . 85 596 353 686 568 233 320 373 319 Initial 596 | . 9 22 . 232 . . 44 398 596 323 587 . . 63 . . . . . 4 312 107 385 207 174 185 158 Average 373 | 5 84 10 271 279 . 102 283 843 611 745 515 . . 130 . . . . 10 414 287 395 423 214 261 232 163 Maximum Alert Level 4 | . 1 . 2 1 . . 2 4 3 4 2 . . 1 . . . . . 2 1 2 2 1 1 1 1 Low Security (%) 32 | 100 95 100 34 . . 100 28 . . . . . . 80 . . . . 100 14 13 29 . . 31 35 65 Level 1 27 | . 4 . 45 100 . . 47 6 . 26 . . . 19 . . . . . 2 86 23 44 100 68 64 34 Level 2 29 | . . . 20 . . . 24 17 95 21 100 . . . . . . . . 83 . 46 55 . . . . Level 3 7 | . . . . . . . . 58 4 23 . . . . . . . . . . . . . . . . . Level 4 3 | . . . . . . . . 17 . 28 . . . . . . . . . . . . . . . . . Level 5 . | . . . . . . . . . . . . . . . . . . . . . . . . . . . . High Security . | . . . . . . . . . . . . . . . . . . . . . . . . . . . . Max Security . | . . . . . . . . . . . . . . . . . . . . . . . . . . . . Squads Dispatched 35 | . 2 . 4 . . 1 3 . 4 . 1 . . 5 . . . . 1 . . . 4 . 2 8 . Investigation 13 | . 2 . 4 . . 1 2 . 1 . 1 . . 2 . . . . . . . . . . . . . Extermination 4 | . . . . . . . . . . . . . . 2 . . . . 1 . . . . . . 1 . Reinforcement 11 | . . . . . . . 1 . 2 . . . . 1 . . . . . . . . 1 . 2 4 . Assault 2 | . . . . . . . . . 1 . . . . . . . . . . . . . 1 . . . . Garrison 2 | . . . . . . . . . . . . . . . . . . . . . . . 2 . . . . Intercept 3 | . . . . . . . . . . . . . . . . . . . . . . . . . . 3 . Searches Triggered . | . . . . . . . . . . . . . . . . . . . . . . . . . . . . Construction Impeded . | . . . . . . . . . . . . . . . . . . . . . . . . . . . . Haulers Reinforced 1 | . . . . . . . . . . . . . . . . . . . . . . . . . . 1 . Active Scanning Responses . | . . . . . . . . . . . . . . . . . . . . . . . . . . . . Cargo Convoy Interrupts . | . . . . . . . . . . . . . . . . . . . . . . . . . . . . Stealth | -11 -10 -10 -9 -9 -9 -8 -8 -8 -8 -8 -7 -7 -7 -6 -6 -6 -6 -5 -5 -5 -4 -4 -3 -2 -2 -1 -1 --------- Run | Jun Mat Min Mat Min Exi Min Mat Gar Mat Gar Fac Low Low Fac Low Low Dat Pro Fac Gar Fac Gar Res Res DSF Acc Com Distress Signals 6 | . 2 . 2 . . . 1 . 1 . . . . . . . . . . . . . . . . . . Communications Jammed 64 | . . . . . . . . . 5 . . . . 2 . . . . 7 . 8 . 2 . . 15 25 Distress Signals 64 | . . . . . . . . . 5 . . . . 2 . . . . 7 . 8 . 2 . . 15 25 Times Spotted 353 | . 14 18 36 2 . 5 33 28 28 19 2 2 . 30 8 4 4 4 4 21 13 21 11 . 8 27 11 Peak Tracking Total 12 | . 7 5 5 2 . 4 5 5 5 7 1 2 . 4 4 3 2 3 3 12 6 5 6 . 3 6 4 Tactical Retreats 17 | . . 4 2 . . . . 1 1 . . . . 3 1 . . . . 1 . 1 3 . . . . Traps | -11 -10 -10 -9 -9 -9 -8 -8 -8 -8 -8 -7 -7 -7 -6 -6 -6 -6 -5 -5 -5 -4 -4 -3 -2 -2 -1 -1 ------- Run | Jun Mat Min Mat Min Exi Min Mat Gar Mat Gar Fac Low Low Fac Low Low Dat Pro Fac Gar Fac Gar Res Res DSF Acc Com Traps Triggered 24 | . . . 1 . . . 1 10 2 5 2 . . 2 . . . . . . . . . . . . 1 Indirectly 2 | . . . . . . . . 1 . 1 . . . . . . . . . . . . . . . . . Trap Hack Attempts . | . . . . . . . . . . . . . . . . . . . . . . . . . . . . Triggered . | . . . . . . . . . . . . . . . . . . . . . . . . . . . . Disarmed . | . . . . . . . . . . . . . . . . . . . . . . . . . . . . Reprogrammed . | . . . . . . . . . . . . . . . . . . . . . . . . . . . . Reused . | . . . . . . . . . . . . . . . . . . . . . . . . . . . . Traps Extracted . | . . . . . . . . . . . . . . . . . . . . . . . . . . . . Installed . | . . . . . . . . . . . . . . . . . . . . . . . . . . . . Triggered . | . . . . . . . . . . . . . . . . . . . . . . . . . . . . Machines | -11 -10 -10 -9 -9 -9 -8 -8 -8 -8 -8 -7 -7 -7 -6 -6 -6 -6 -5 -5 -5 -4 -4 -3 -2 -2 -1 -1 ---------- Run | Jun Mat Min Mat Min Exi Min Mat Gar Mat Gar Fac Low Low Fac Low Low Dat Pro Fac Gar Fac Gar Res Res DSF Acc Com Machines Disabled 22 | . . . 1 . . . 2 . 4 4 . . . . . . . 1 . 2 3 3 . . . 1 1 Max in Single Turn 2 | . . . 1 . . . 2 . 1 2 . . . . . . . 1 . 1 2 1 . . . 1 1 Garrison Access 3 | . . . . . . . . . . . 1 . . 1 . . . . . . . . . . . 1 . Garrison Relay 5 | . . . . . . . . . . 2 . . . . . . . . . 1 . 2 . . . . . Machines Repaired . | . . . . . . . . . . . . . . . . . . . . . . . . . . . . Machines Sabotaged . | . . . . . . . . . . . . . . . . . . . . . . . . . . . . Overloaded Fab Kills . | . . . . . . . . . . . . . . . . . . . . . . . . . . . . Hacking | -11 -10 -10 -9 -9 -9 -8 -8 -8 -8 -8 -7 -7 -7 -6 -6 -6 -6 -5 -5 -5 -4 -4 -3 -2 -2 -1 -1 --------- Run | Jun Mat Min Mat Min Exi Min Mat Gar Mat Gar Fac Low Low Fac Low Low Dat Pro Fac Gar Fac Gar Res Res DSF Acc Com Machines Accessed 69 | . 6 1 7 . 1 1 11 3 9 2 5 . . 6 . . 3 . 3 1 3 1 1 3 . 1 1 Terminals 50 | . 4 1 5 . . 1 10 3 7 2 2 . . 4 . . . . 2 1 2 1 1 3 . . 1 Fabricators 3 | . . . . . . . . . . . 2 . . 1 . . . . . . . . . . . . . Repair Stations . | . . . . . . . . . . . . . . . . . . . . . . . . . . . . Recycling Units 5 | . 2 . 2 . . . . . 1 . . . . . . . . . . . . . . . . . . Scanalyzers . | . . . . . . . . . . . . . . . . . . . . . . . . . . . . Garrison Access 7 | . . . . . . . 1 . 1 . 1 . . 1 . . . . 1 . 1 . . . . 1 . Total Hacks 199 | . 19 1 12 . 1 4 37 8 18 5 10 . . 13 . . 25 . 17 1 8 2 4 10 . 2 2 Successful 97 | . 10 1 2 . 1 . 13 1 7 2 5 . . 6 . . 25 . 11 1 4 1 1 3 . 2 1 Failed 101 | . 8 . 10 . . 4 24 7 11 3 5 . . 7 . . . . 6 . 4 1 3 7 . . 1 Catastrophic 25 | . 2 . 3 . . 1 4 3 2 1 4 . . 1 . . . . . . 1 . . 2 . . 1 Database Lockouts 1 | . 1 . . . . . . . . . . . . . . . . . . . . . . . . . . Manual 124 | . 18 2 8 . 1 4 29 . 17 . 3 . . 8 . . . 1 14 . 6 . 3 8 . . 2 Terminals 145 | . 17 1 9 . . 4 35 8 16 5 3 . . 7 . . . . 15 1 6 2 4 10 . . 2 Fabricators 9 | . . . . . . . . . . . 5 . . 4 . . . . . . . . . . . . . Repair Stations . | . . . . . . . . . . . . . . . . . . . . . . . . . . . . Recycling Units 6 | . 2 . 3 . . . . . 1 . . . . . . . . . . . . . . . . . . Scanalyzers . | . . . . . . . . . . . . . . . . . . . . . . . . . . . . Garrison Access 13 | . . . . . . . 2 . 1 . 2 . . 2 . . . . 2 . 2 . . . . 2 . Terminal Hacks 58 | . 5 1 . . 1 . 9 1 3 2 1 . . . . . 25 . 5 1 2 1 . 1 . . . Record 6 | . . . . . . . . . . . . . . . . . 6 . . . . . . . . . . Part Schematic 15 | . 1 . . . . . 1 . . . . . . . . . 10 . 3 . . . . . . . . Robot Schematic 6 | . . . . . . . . . . . . . . . . . 6 . . . . . . . . . . Robot Analysis 9 | . 3 1 . . . . 5 . . . . . . . . . . . . . . . . . . . . Prototype ID Bank 3 | . . . . . . . . . . . . . . . . . 3 . . . . . . . . . . Open DSF 1 | . . . . . . . . . . . . . . . . . . . . . . . . 1 . . . Branch Access Points 1 | . . . . . . . . . . . 1 . . . . . . . . . . . . . . . . Emergency Access Points 2 | . . . . . . . . 1 . 1 . . . . . . . . . . . . . . . . . Terminal Index 2 | . 1 . . . . . 1 . . . . . . . . . . . . . . . . . . . . Unreport Threat 6 | . . . . . . . . . 3 . . . . . . . . . 1 . 2 . . . . . . Locate Traps 1 | . . . . . . . 1 . . . . . . . . . . . . . . . . . . . . Registered Components 1 | . . . . . . . . . . . . . . . . . . . 1 . . . . . . . . Zone Layout 1 | . . . . . . . 1 . . . . . . . . . . . . . . . . . . . . Garrison Registry 1 | . . . . . . . . . . . . . . . . . . . . 1 . . . . . . . Patrol Navigation 1 | . . . . . . . . . . . . . . . . . . . . . . 1 . . . . . Security Stations 1 | . . . . . . . . . . 1 . . . . . . . . . . . . . . . . . EX-Prototype ID Bank 1 | . . . . . 1 . . . . . . . . . . . . . . . . . . . . . . Fabricator Hacks 4 | . . . . . . . . . . . 2 . . 2 . . . . . . . . . . . . . Load Schematic 3 | . . . . . . . . . . . 2 . . 1 . . . . . . . . . . . . . Build 1 | . . . . . . . . . . . . . . 1 . . . . . . . . . . . . . Repair Station Hacks . | . . . . . . . . . . . . . . . . . . . . . . . . . . . . Recycling Unit Hacks . | . . . . . . . . . . . . . . . . . . . . . . . . . . . . Scanalyzer . | . . . . . . . . . . . . . . . . . . . . . . . . . . . . Garrison Access Hacks 12 | . . . . . . . 1 . 1 . 2 . . 2 . . . . 2 . 2 . . . . 2 . Unlock Access 4 | . . . . . . . 1 . 1 . . . . . . . . . 1 . 1 . . . . . . Seal Access 3 | . . . . . . . . . . . 1 . . 1 . . . . . . . . . . . 1 . Coupler Status 5 | . . . . . . . . . . . 1 . . 1 . . . . 1 . 1 . . . . 1 . Unauthorized Hacks 23 | . 5 . 2 . . . 3 . 3 . . . . 2 . . . . 4 . . . 1 2 . . 1 Terminals 17 | . 3 . . . . . 3 . 2 . . . . 1 . . . . 4 . . . 1 2 . . 1 Track 3 | . 1 . . . . . 1 . . . . . . . . . . . 1 . . . . . . . . Assimilate 1 | . . . . . . . . . . . . . . . . . . . 1 . . . . . . . . Botnet 10 | . 1 . . . . . 2 . 2 . . . . 1 . . . . 1 . . . 1 1 . . 1 Operators 3 | . 1 . . . . . . . . . . . . . . . . . 1 . . . . 1 . . . Fabricators 1 | . . . . . . . . . . . . . . 1 . . . . . . . . . . . . . Prioritize 1 | . . . . . . . . . . . . . . 1 . . . . . . . . . . . . . Repair Stations . | . . . . . . . . . . . . . . . . . . . . . . . . . . . . Recycling Units 5 | . 2 . 2 . . . . . 1 . . . . . . . . . . . . . . . . . . Recyclers 1 | . . . . . . . . . 1 . . . . . . . . . . . . . . . . . . Tunnel 4 | . 2 . 2 . . . . . . . . . . . . . . . . . . . . . . . . Scanalyzers . | . . . . . . . . . . . . . . . . . . . . . . . . . . . . Garrison Access . | . . . . . . . . . . . . . . . . . . . . . . . . . . . . Data Cores Recovered 2 | . 1 . . . . . . . . . . . . 1 . . . . . . . . . . . . . Used 1 | . . . . . . . . . . . . . . 1 . . . . . . . . . . . . . Hacking Detections 56 | . 4 1 5 . . 1 10 3 8 2 5 . . 6 . . . . 2 1 3 . 1 2 . 1 1 Full Trace Events 10 | . . . 2 . . 1 1 3 . . 1 . . 2 . . . . . . . . . . . . . Feedback Events 2 | . . . . . . . . 2 . . . . . . . . . . . . . . . . . . . Corruption 2 | . . . . . . . . 2 . . . . . . . . . . . . . . . . . . . Feedback Blocked . | . . . . . . . . . . . . . . . . . . . . . . . . . . . . Robot Schematics Acquired 6 | . . . . . . . . . . . . . . . . . 6 . . . . . . . . . . Robots Built . | . . . . . . . . . . . . . . . . . . . . . . . . . . . . Authchips . | . . . . . . . . . . . . . . . . . . . . . . . . . . . . Time . | . . . . . . . . . . . . . . . . . . . . . . . . . . . . Total Robot Build Rating . | . . . . . . . . . . . . . . . . . . . . . . . . . . . . Part Schematics Acquired 15 | . 1 . . . . . 1 . . . . . . . . . 10 . 3 . . . . . . . . Parts Built 2 | . . . . . . . . . . . . . . 2 . . . . . . . . . . . . . Authchips . | . . . . . . . . . . . . . . . . . . . . . . . . . . . . Time 36 | . . . . . . . . . . . . . . 36 . . . . . . . . . . . . . Total Part Build Rating 6 | . . . . . . . . . . . . . . 6 . . . . . . . . . . . . . Parts Repaired . | . . . . . . . . . . . . . . . . . . . . . . . . . . . . Time . | . . . . . . . . . . . . . . . . . . . . . . . . . . . . Parts Recycled . | . . . . . . . . . . . . . . . . . . . . . . . . . . . . Recycled Matter . | . . . . . . . . . . . . . . . . . . . . . . . . . . . . Retrieved Matter . | . . . . . . . . . . . . . . . . . . . . . . . . . . . . Retrieved Components . | . . . . . . . . . . . . . . . . . . . . . . . . . . . . Parts Scanalyzed . | . . . . . . . . . . . . . . . . . . . . . . . . . . . . Part Schematics Acquired . | . . . . . . . . . . . . . . . . . . . . . . . . . . . . Parts Damaged . | . . . . . . . . . . . . . . . . . . . . . . . . . . . . Bothacking | -11 -10 -10 -9 -9 -9 -8 -8 -8 -8 -8 -7 -7 -7 -6 -6 -6 -6 -5 -5 -5 -4 -4 -3 -2 -2 -1 -1 ------------ Run | Jun Mat Min Mat Min Exi Min Mat Gar Mat Gar Fac Low Low Fac Low Low Dat Pro Fac Gar Fac Gar Res Res DSF Acc Com Used RIF Installer 6 | . . . . . . . . 1 . 2 . . . . . . . . . 2 . 1 . . . . . Coupler Efficiency 2 | . . . . . . . . . . 1 . . . . . . . . . 1 . . . . . . . Command Fork 1 | . . . . . . . . . . 1 . . . . . . . . . . . . . . . . . Zone Cloak 1 | . . . . . . . . . . . . . . . . . . . . 1 . . . . . . . Watcher Feeds 1 | . . . . . . . . . . . . . . . . . . . . . . 1 . . . . . Robots Hacked 30 | . . . . . . . . . . . 2 . . . . . . . . . . 6 2 . 3 14 3 Non-combat 7 | . . . . . . . . . . . 2 . . . . . . . . . . . 2 . . 3 . Combat 23 | . . . . . . . . . . . . . . . . . . . . . . 6 . . 3 11 3 Robot Hacks Applied 36 | . . . . . . . . . . . 3 . . . . . . . . . . 8 2 . 4 16 3 parse_system 1 | . . . . . . . . . . . . . . . . . . . . . . 1 . . . . . start_evac 1 | . . . . . . . . . . . 1 . . . . . . . . . . . . . . . . map_walls 1 | . . . . . . . . . . . 1 . . . . . . . . . . . . . . . . drop_inventory 3 | . . . . . . . . . . . . . . . . . . . . . . . 1 . . 2 . recall_reinforcements 1 | . . . . . . . . . . . . . . . . . . . . . . . . . . 1 . map_route 3 | . . . . . . . . . . . 1 . . . . . . . . . . . 1 . . 1 . scatter_targeting 5 | . . . . . . . . . . . . . . . . . . . . . . 1 . . 1 2 1 link_complan 3 | . . . . . . . . . . . . . . . . . . . . . . 1 . . 1 1 . disrupt_area 4 | . . . . . . . . . . . . . . . . . . . . . . . . . 1 3 . reboot_system 1 | . . . . . . . . . . . . . . . . . . . . . . 1 . . . . . overwrite_iff 6 | . . . . . . . . . . . . . . . . . . . . . . 1 . . 1 4 . formatsys_high 5 | . . . . . . . . . . . . . . . . . . . . . . 2 . . . 1 2 formatsys_deep 2 | . . . . . . . . . . . . . . . . . . . . . . 1 . . . 1 . Relay Couplers Released 24 | . . . . . . . . . . 7 . . . . . . . . . 5 . 9 . . . 3 . Machine Destruction 24 | . . . . . . . . . . 7 . . . . . . . . . 5 . 9 . . . 3 . Attached 9 | . . . . . . . . . . . 1 . . . . . . . . . . 4 1 . . 2 1 Fabnet Peak Effective % . | . . . . . . . . . . . . . . . . . . . . . . . . . . . . Robots Rewired 3 | . . . . . . . . 3 . . . . . . . . . . . . . . . . . . . Allies Hacked . | . . . . . . . . . . . . . . . . . . . . . . . . . . . . Hacks Repelled . | . . . . . . . . . . . . . . . . . . . . . . . . . . . . Allies | -11 -10 -10 -9 -9 -9 -8 -8 -8 -8 -8 -7 -7 -7 -6 -6 -6 -6 -5 -5 -5 -4 -4 -3 -2 -2 -1 -1 -------- Run | Jun Mat Min Mat Min Exi Min Mat Gar Mat Gar Fac Low Low Fac Low Low Dat Pro Fac Gar Fac Gar Res Res DSF Acc Com Total Allies 22 | . . . . . . . . 3 . . . . . . . . . . 1 . . 6 . . 1 9 2 Largest Group 4 | . . . . . . . . 3 . . . . . . . . . . 1 . . 4 . . 1 3 2 Highest-Rated Group 199 | . . . . . . . . 48 . . . . . . . . . . 10 . . 199 . . 69 196 128 Highest-Rated Ally 69 | . . . . . . . . 16 . . . . . . . . . . 10 . . 54 . . 69 69 64 Total Orders . | . . . . . . . . . . . . . . . . . . . . . . . . . . . . Ally Attacks 72 | . . . . . . . . 16 . . . . . . . . . . . . . 19 . . 3 29 5 Total Damage 2379 | . . . . . . . . 163 . . . . . . . . . . . . . 645 . . 162 1303 106 Kills 9 | . . . . . . . . 2 . . . . . . . . . . . . . 3 . . . 3 1 Allies Corrupted . | . . . . . . . . . . . . . . . . . . . . . . . . . . . . Allies Melted 1 | . . . . . . . . . . . . . . . . . . . . . . 1 . . . . . Intel | -11 -10 -10 -9 -9 -9 -8 -8 -8 -8 -8 -7 -7 -7 -6 -6 -6 -6 -5 -5 -5 -4 -4 -3 -2 -2 -1 -1 ------- Run | Jun Mat Min Mat Min Exi Min Mat Gar Mat Gar Fac Low Low Fac Low Low Dat Pro Fac Gar Fac Gar Res Res DSF Acc Com Robot Analysis Total 140 | . 3 1 . . . . 5 . . . . . . . . . 131 . . . . . . . . . . Derelict Logs Recovered 10 | . . 2 . 1 . . . . . . . 1 3 . 1 2 . . . . . . . . . . . Drone Launches . | . . . . . . . . . . . . . . . . . . . . . . . . . . . . Drone Recoveries . | . . . . . . . . . . . . . . . . . . . . . . . . . . . . Exploration | -11 -10 -10 -9 -9 -9 -8 -8 -8 -8 -8 -7 -7 -7 -6 -6 -6 -6 -5 -5 -5 -4 -4 -3 -2 -2 -1 -1 ------------- Run | Jun Mat Min Mat Min Exi Min Mat Gar Mat Gar Fac Low Low Fac Low Low Dat Pro Fac Gar Fac Gar Res Res DSF Acc Com Turns Passed 16567 | 87 410 496 898 284 245 93 1144 1286 1377 958 792 432 165 1405 382 481 275 543 547 735 443 712 426 263 235 870 583 Spaces Moved 9164 | 54 328 350 517 221 229 60 671 735 708 518 460 245 105 685 197 266 126 295 287 363 217 344 205 153 87 395 343 Core 58 | 13 . . . . . . . . . . . . . . . . . . . . . . . . . . 45 Treads 5881 | . . . . . . . . . 635 518 460 245 105 685 197 266 126 295 287 363 217 344 205 153 87 395 298 Legs . | . . . . . . . . . . . . . . . . . . . . . . . . . . . . Wheels 3225 | 41 328 350 517 221 229 60 671 735 73 . . . . . . . . . . . . . . . . . . Hover . | . . . . . . . . . . . . . . . . . . . . . . . . . . . . Flight . | . . . . . . . . . . . . . . . . . . . . . . . . . . . . Fastest Speed 50 | 50 80 90 105 120 105 120 120 115 130 153 158 158 158 155 160 160 160 160 160 145 145 152 152 152 152 145 50 Average Speed 141 | 81 93 106 110 120 105 120 124 129 154 154 158 158 158 157 160 160 160 160 160 155 148 152 152 152 155 151 141 Slowest Speed 1850 | 100 105 145 155 120 105 120 130 130 158 158 163 158 158 160 160 160 160 160 160 160 152 152 152 152 157 157 1850 Overloaded Moves . | . . . . . . . . . . . . . . . . . . . . . . . . . . . . Propulsion Burnouts . | . . . . . . . . . . . . . . . . . . . . . . . . . . . . Robots Hopped . | . . . . . . . . . . . . . . . . . . . . . . . . . . . . Cave-ins Triggered . | . . . . . . . . . . . . . . . . . . . . . . . . . . . . Time Travels 1 | . . . . . . . . . . 1 . . . . . . . . . . . . . . . . . Exploration Rate (%) 44 | 3 59 78 59 51 62 16 73 80 79 78 18 49 18 25 43 51 82 57 10 56 14 52 8 7 89 19 23 Regions Visited 27 Branch Regions 11 Pre-discovered Areas 33 | . 2 1 2 1 . . . . . . . 1 1 . . 1 24 . . . . . . . . . . Known Exits Taken 15 | . . . . . . 1 1 . 1 . 1 1 1 1 1 1 1 1 1 . 1 . 1 1 . . . Unknown Exits Taken 7 | 1 1 1 1 1 1 . . . . . . . . . . . . . . . . . . . . 1 . Scrap Searched 11 | . . 1 . 1 . 1 . . . . . 3 1 . 1 . . 3 . . . . . . . . . Spaces Dug 127 | . 3 . 1 . . 11 16 . 10 . 8 1 . 16 3 1 . 2 4 . 9 3 5 5 3 21 5 Terrain Destroyed 600 | . 3 58 53 . . 23 45 26 62 37 8 4 . 21 5 2 45 16 4 31 16 53 6 6 3 31 42 Melee 71 | . . . . . . . 16 . 10 . 8 1 . 15 2 1 . 2 4 . 6 1 5 . . . . Projectile 78 | . 3 . 1 . . . . . 5 1 . . . 6 3 1 . . . . 4 5 1 6 3 31 8 AOE 451 | . . 58 52 . . 23 29 26 47 36 . 3 . . . . 45 14 . 31 6 47 . . . . 34 Terrain Rammed . | . . . . . . . . . . . . . . . . . . . . . . . . . . . . Walls Destroyed . | . . . . . . . . . . . . . . . . . . . . . . . . . . . . Machines Disabled . | . . . . . . . . . . . . . . . . . . . . . . . . . . . . Actions | -11 -10 -10 -9 -9 -9 -8 -8 -8 -8 -8 -7 -7 -7 -6 -6 -6 -6 -5 -5 -5 -4 -4 -3 -2 -2 -1 -1 --------- Run | Jun Mat Min Mat Min Exi Min Mat Gar Mat Gar Fac Low Low Fac Low Low Dat Pro Fac Gar Fac Gar Res Res DSF Acc Com Total 11349 | 80 382 425 696 231 234 71 847 934 875 602 508 269 104 870 232 294 178 339 349 481 287 454 277 179 162 582 407 Wait 224 | . . 5 5 . . . 10 21 8 16 . . . 16 3 4 12 6 8 44 8 20 5 . 12 17 4 Move 9133 | 53 327 349 516 220 228 59 670 733 707 516 459 244 104 684 196 265 125 294 286 361 216 342 204 152 86 394 343 Hop . | . . . . . . . . . . . . . . . . . . . . . . . . . . . . Pick Up 202 | 9 11 8 18 1 2 1 23 10 14 3 6 2 . 14 . 1 6 1 8 10 9 5 9 6 5 16 4 Fast Attach 73 | 6 2 1 8 . . . 3 3 9 1 5 2 . 5 . . 2 2 4 5 1 2 1 2 5 2 2 Attach 126 | 3 2 3 11 1 . 2 8 7 7 2 4 1 . 7 . . 4 3 6 1 7 4 6 3 4 13 17 Detach 54 | 2 1 . 7 . . . 4 . 4 1 3 . . 1 . . 4 3 4 1 . 2 3 2 6 4 2 Swap 469 | . 11 25 39 4 2 4 38 34 44 26 8 10 . 47 12 6 8 14 10 17 10 27 14 3 14 37 5 Drop 202 | . 6 6 18 1 2 . 22 11 23 2 7 2 . 25 . 1 7 3 8 15 7 2 5 4 8 15 2 Fire 676 | 7 22 28 74 4 . 5 52 53 43 26 1 5 . 47 19 16 9 10 7 19 23 47 23 7 22 79 28 Melee 131 | . . . . . . . 17 14 16 9 15 3 . 19 2 1 1 3 7 8 6 3 7 . . . . Ram . | . . . . . . . . . . . . . . . . . . . . . . . . . . . . Kick . | . . . . . . . . . . . . . . . . . . . . . . . . . . . . Crush 11 | . . . . . . . . . . . . . . 5 . . . . 1 . . . . . . 5 . Escape Stasis 24 | . . . . . . . . 24 . . . . . . . . . . . . . . . . . . . Rewire 24 | . . . . . . . . 24 . . . . . . . . . . . . . . . . . . . Trap . | . . . . . . . . . . . . . . . . . . . . . . . . . . . . Miscellaneous . | . . . . . . . . . . . . . . . . . . . . . . . . . . . . Route ------- -11/Junkyard -10/Materials (discovered 2 exits: *Mat / *Min) -10/Mines -9/Materials (discovered 4 exits: *Mat x2 / [*Min] / [*Sto]) -9/Mines (discovered 3 exits: *Mat x2 / *Exi) -9/Exiles (discovered 2 exits: *Min x2) -8/Mines -8/Materials (discovered 3 exits: *Fac x2 / Gar) -8/Garrison (discovered 3 exits: *Mat x3) -8/Materials (discovered 3 exits: *Fac x2 / Gar) -8/Garrison (discovered 3 exits: *Fac x3) -7/Factory (discovered 2 exits: *Low x2) -7/Lower Caves -7/Lower Caves -6/Factory (discovered 2 exits: *Fac / *Low) -6/Lower Caves -6/Lower Caves (discovered 2 exits: Fac / *Dat) -6/Data Miner -5/Proximity Caves -5/Factory (discovered 2 exits: Ext / Gar) -5/Garrison (discovered 3 exits: *Fac x3) -4/Factory (discovered 2 exits: *Res / Gar) -4/Garrison -3/Research -2/Research -2/DSF -1/Access -1/Command History --------- Turn | Location | Event 22 | -11/Junkyard | Discovered new exit (range 16) 88 | -11/Junkyard | Entered Materials 188 | -10/Materials | Discovered new exit (range 8) 285 | -10/Materials | Discovered new exit (range 6) 319 | -10/Materials | Build established: Mutant 366 | -10/Materials | Central database locked down 498 | -10/Materials | Entered Mines 505 | -10/Mines | Assembled infested the area 507 | -10/Mines | Received a Rocket Launcher from a helpful Derelict 655 | -10/Mines | Destroyed 9 combat bots 671 | -10/Mines | Learned location of Storage (-9) 889 | -10/Mines | Learned location of 1 exit from Materials 971 | -10/Mines | Discovered new exit (range 6) 994 | -10/Mines | Entered Materials 994 | -9/Materials | Evolved 2 slots: Propulsion x1, Utility x1 995 | -9/Materials | Identified exit to Materials 1190 | -9/Materials | Discovered new exit (range 10) 1565 | -9/Materials | Build established: Scavenger-Mutant 1709 | -9/Materials | Discovered exit to Materials (range 5) 1875 | -9/Materials | Discovered new exit (range 11) 1892 | -9/Materials | Entered Mines 2059 | -9/Mines | Discovered exit to Materials (range 8) 2144 | -9/Mines | Discovered exit to Materials (range 14) 2171 | -9/Mines | Deemed a non-threat by the Exiles lab entrance 2171 | -9/Mines | Discovered new exit (range 5) 2176 | -9/Mines | Entered Exiles 2193 | -9/Exiles | Discovered new exit (range 15) 2208 | -9/Exiles | Met 8R-AWN 2223 | -9/Exiles | Met EX-HEX 2255 | -9/Exiles | Met EX-BIN 2267 | -9/Exiles | Aligned with FarCom system 2268 | -9/Exiles | Given EX-Vault access code 2292 | -9/Exiles | Opened EX-Vault 2300 | -9/Exiles | Found Chronowheel 2323 | -9/Exiles | Warned to stay clear of 0b10 Research branches 2352 | -9/Exiles | Met EX-DEC 2412 | -9/Exiles | Discovered new exit (range 10) 2421 | -9/Exiles | Left Exiles lab with Chronowheel 2421 | -9/Exiles | Entered Mines 2456 | -8/Mines | Discovered exit to Materials (range 9) 2514 | -8/Mines | Entered Materials 2514 | -8/Materials | Evolved 2 slots: Utility x1, Weapon x1 3062 | -8/Materials | Discovered new exit (range 9) 3515 | -8/Materials | Discovered new exit (range 13) 3656 | -8/Materials | Identified exit to Garrison 3658 | -8/Materials | Entered Garrison 3754 | -8/Garrison | Triggered checkpoint 3780 | -8/Garrison | Triggered checkpoint 3789 | -8/Garrison | Triggered checkpoint 3855 | -8/Garrison | Discovered new exit (range 12) 4010 | -8/Garrison | Triggered checkpoint 4137 | -8/Garrison | Discovered new exit (range 11) 4268 | -8/Garrison | Triggered checkpoint 4317 | -8/Garrison | Triggered checkpoint 4362 | -8/Garrison | Build established: Mutant 4507 | -8/Garrison | Spotted B-75 Beast 4557 | -8/Garrison | Lost 4 parts (1u3w) 4566 | -8/Garrison | Destroyed B-75 Beast 4736 | -8/Garrison | Destroyed 7 combat bots 4797 | -8/Garrison | Discovered new exit (range 10) 4828 | -8/Garrison | Installed Relay Interface Framework 4944 | -8/Garrison | Entered Materials 5744 | -8/Materials | First assault squad dispatched 5816 | -8/Materials | Core integrity fell below 50% 6037 | -8/Materials | Discovered new exit (range 11) 6279 | -8/Materials | Discovered new exit (range 14) 6319 | -8/Materials | Identified exit to Garrison 6321 | -8/Materials | Entered Garrison 6401 | -8/Garrison | Expanded RIF knowledge: Coupler Efficiency 6470 | -8/Garrison | Triggered checkpoint 6512 | -8/Garrison | Learned Factory security intel 6579 | -8/Garrison | Triggered checkpoint 6621 | -8/Garrison | Triggered checkpoint 6656 | -8/Garrison | Garrison Relay disabled 6686 | -8/Garrison | Discovered new exit (range 19) 6720 | -8/Garrison | Triggered checkpoint 6828 | -8/Garrison | Triggered checkpoint 6859 | -8/Garrison | Destroyed 7 combat bots 6867 | -8/Garrison | Activated Chronowheel 6867 | -8/Garrison | Spacetime reconverged on an earlier point 6872 | -8/Garrison | Expanded RIF knowledge: Command Fork 6916 | -8/Garrison | Triggered checkpoint 7006 | -8/Garrison | Garrison Relay disabled 7106 | -8/Garrison | Discovered new exit (range 7) 7176 | -8/Garrison | Triggered checkpoint 7257 | -8/Garrison | Discovered new exit (range 10) 7279 | -8/Garrison | Entered Factory 7279 | -7/Factory | Evolved 2 slots: Utility x2 7737 | -7/Factory | Discovered new exit (range 40) 7860 | -7/Factory | Identified exit to Lower Caves 8071 | -7/Factory | Entered Lower Caves 8165 | -7/Lower Caves | Build established: Assassin 8177 | -7/Lower Caves | Learned location of Zion (-7) 8259 | -7/Lower Caves | Found Alien Artifact 8259 | -7/Lower Caves | Identified Core Expander 8259 | -7/Lower Caves | Installed Core Expander, added new Power slot 8479 | -7/Lower Caves | Discovered new exit (range 15) 8501 | -7/Lower Caves | Identified exit to Lower Caves 8503 | -7/Lower Caves | Entered another Lower Caves area 8527 | -7/Lower Caves | Learned Factory stockpile data 8551 | -7/Lower Caves | Discovered new exit (range 5) 8605 | -7/Lower Caves | Learned Factory machine intel 8666 | -7/Lower Caves | Identified exit to Factory 8668 | -7/Lower Caves | Entered Factory 8668 | -6/Factory | Evolved 2 slots: Propulsion x1, Utility x1 8670 | -6/Factory | Loaded intel: 286 machine locations 9057 | -6/Factory | Fabricated Lrn. Tractor Beam (x2) 9619 | -6/Factory | Spotted B-75 Beast 9675 | -6/Factory | Discovered new exit (range 6) 9683 | -6/Factory | Identified exit to Lower Caves 9807 | -6/Factory | Destroyed B-75 Beast 9834 | -6/Factory | Discovered new exit (range 18) 10073 | -6/Factory | Entered Lower Caves 10074 | -6/Lower Caves | Encountered a Warlord checkpoint 10148 | -6/Lower Caves | Destroyed 7 combat bots 10318 | -6/Lower Caves | Learned Factory terminal intel 10442 | -6/Lower Caves | Discovered new exit (range 10) 10453 | -6/Lower Caves | Identified exit to Lower Caves 10455 | -6/Lower Caves | Entered another Lower Caves area 10456 | -6/Lower Caves | Encountered a Warlord checkpoint 10504 | -6/Lower Caves | Discovered new exit (range 14) 10840 | -6/Lower Caves | Discovered new exit (range 7) 10850 | -6/Lower Caves | Identified exit to Data Miner 10936 | -6/Lower Caves | Entered Data Miner 10938 | -6/Data Miner | Discovered new exit (range 7) 10963 | -6/Data Miner | Met Data Miner 10997 | -6/Data Miner | Learned location of Section 7 (-3) 10997 | -6/Data Miner | Acquired the access code to Warlord's prototype stash 11023 | -6/Data Miner | Received God Mode back door access code from Data Miner 11049 | -6/Data Miner | Destroyed Data Miner 11052 | -6/Data Miner | Interfaced with the Data Conduit 11131 | -6/Data Miner | Found Prototype Hackware 11133 | -6/Data Miner | Found Prototype Hackware 11138 | -6/Data Miner | Found Prototype Hackware 11173 | -6/Data Miner | Found Exp. Thermal Shield 11208 | -6/Data Miner | Identified exit to Proximity Caves 11211 | -6/Data Miner | Entered Proximity Caves 11416 | -5/Proximity Caves | Acquired the password to a Derelict Tinkerer's latest research 11429 | -5/Proximity Caves | Found Prototype Special Weapon 11429 | -5/Proximity Caves | Identified Molecular Deconstructor 11550 | -5/Proximity Caves | Caught by Unaware searching for contraband prototypes 11736 | -5/Proximity Caves | Discovered new exit (range 9) 11752 | -5/Proximity Caves | Identified exit to Factory 11754 | -5/Proximity Caves | Entered Factory 11754 | -5/Factory | Evolved 2 slots: Utility x1, Weapon x1 11755 | -5/Factory | Identified exit to Extension 11756 | -5/Factory | Loaded intel: 288 machine locations 11757 | -5/Factory | Loaded intel: 28 terminal locations 11761 | -5/Factory | Identified System Mapper 11830 | -5/Factory | Identified Ghost Barrier 12070 | -5/Factory | Build established: Hacker-Assassin 12299 | -5/Factory | Identified exit to Garrison 12301 | -5/Factory | Entered Garrison 12302 | -5/Garrison | Loaded intel: 30 machine locations 12308 | -5/Garrison | Discovered new exit (range 65) 12308 | -5/Garrison | Discovered new exit (range 81) 12308 | -5/Garrison | Discovered new exit (range 53) 12398 | -5/Garrison | Triggered checkpoint 12401 | -5/Garrison | Triggered checkpoint 12447 | -5/Garrison | Destroyed 16 combat bots 12510 | -5/Garrison | Expanded RIF knowledge: Zone Cloak 12950 | -5/Garrison | Garrison Relay disabled 13011 | -5/Garrison | Expanded RIF knowledge: Coupler Efficiency 13036 | -5/Garrison | Entered Factory 13036 | -4/Factory | Evolved 2 slots: Utility x2 13037 | -4/Factory | Loaded intel: 240 machine locations 13128 | -4/Factory | Discovered new exit (range 3) 13170 | -4/Factory | Identified Quantum Router 13478 | -4/Factory | Identified exit to Garrison 13479 | -4/Factory | Entered Garrison 13480 | -4/Garrison | Loaded intel: 42 machine locations 13594 | -4/Garrison | Triggered checkpoint 13689 | -4/Garrison | Garrison Relay disabled 13758 | -4/Garrison | Triggered checkpoint 13789 | -4/Garrison | Triggered checkpoint 13886 | -4/Garrison | Spotted B-75 Beast 13960 | -4/Garrison | Assimilated ARC 7a with formatsys_deep 13966 | -4/Garrison | Triggered checkpoint 13971 | -4/Garrison | Triggered checkpoint 14063 | -4/Garrison | Garrison Relay disabled 14102 | -4/Garrison | Discovered new exit (range 13) 14157 | -4/Garrison | Expanded RIF knowledge: Watcher Feeds 14191 | -4/Garrison | Entered Research 14191 | -3/Research | Evolved 2 slots: Utility x2 14192 | -3/Research | Loaded intel: 123 machine locations 14441 | -3/Research | First assault squad dispatched 14479 | -3/Research | Discovered new exit (range 16) 14499 | -3/Research | Garrison activated, responded to threat 14510 | -3/Research | System corruption reached 10% 14573 | -3/Research | Identified exit to Research 14617 | -3/Research | Entered another Research area 14617 | -2/Research | Evolved 2 slots: Utility x1, Weapon x1 14618 | -2/Research | Loaded intel: 126 machine locations 14877 | -2/Research | Identified exit to DSF 14880 | -2/Research | Entered DSF 14881 | -2/DSF | Loaded intel: 2 machine locations 14945 | -2/DSF | Additional patrols routed to DSF 14995 | -2/DSF | Lost 3 parts (1p2w) 15074 | -2/DSF | Discovered new exit (range 14) 15115 | -2/DSF | Entered Access 15115 | -1/Access | Evolved 2 slots: Utility x2 15116 | -1/Access | Loaded intel: 104 machine locations 15262 | -1/Access | Found Hellfire Missile Launcher 15435 | -1/Access | Assimilated ARC 10a with formatsys_deep 15758 | -1/Access | Intercept squad dispatched 15760 | -1/Access | Found Exp. Core Analyzer 15792 | -1/Access | Spotted Tracker 15792 | -1/Access | Spotted Tracker 15793 | -1/Access | Destroyed Tracker 15795 | -1/Access | Destroyed Tracker 15822 | -1/Access | Spotted Combat Programmer 15834 | -1/Access | Destroyed Combat Programmer 15849 | -1/Access | Found Exp. Targeting Computer 15867 | -1/Access | Spotted Combat Programmer 15874 | -1/Access | Destroyed Combat Programmer 15973 | -1/Access | Spotted B-99 Colossus 15973 | -1/Access | Spotted B-99 Colossus 15983 | -1/Access | Discovered new exit (range 3) 15985 | -1/Access | Entered Command 15986 | -1/Command | Loaded intel: 61 machine locations 16009 | -1/Command | Build established: Bothacker-Mutant 16426 | -1/Command | Spotted M Guard 16432 | -1/Command | Spotted M Guard 16434 | -1/Command | Spotted Combat Programmer 16434 | -1/Command | Spotted Combat Programmer 16447 | -1/Command | System corruption reached 10% 16475 | -1/Command | Destroyed M Guard 16487 | -1/Command | Destroyed Combat Programmer 16516 | -1/Command | System corruption reached 30% 16546 | -1/Command | Released all parts (11) 16553 | -1/Command | Core integrity fell below 50% 16563 | -1/Command | Core integrity fell below 20% 16568 | -1/Command | Destroyed by Combat Programmer with EMDS Last Messages --------------- 16542_ System corrupted: Energy discharge (-52). 16544_ Penetrated by EMDS Slug. 16546_ Released Thunder Hammer. 16546_ Released Lgt. Particle Reactor. 16546_ Released Hcp. Storage Unit. 16546_ Released Adv. Targeting Computer. 16546_ Released Relay Coupler [NC]. 16546_ Released Exp. Power Amplifier. 16546_ Released Exp. Core Analyzer. 16546_ Released Exp. Targeting Computer. 16546_ Released Enh. Optical Array. 16546_ Released Adv. Field Recycling Unit. 16546_ Released Exp. Thermal Shield. 16553_ Penetrated by EMDS Slug. 16558_ System corrupted: Heat flow error (+149). 16559_ The unstable cave ceiling collapses. 16562_ Knocked back. 16562_ Door Terminal disabled. 16567_ Knocked back. 16568_ Penetrated by EMDS Slug. Map ----- +----------------------------------------------------+ | ????????????????????????????????????????????# #?? | | ????????????????????????????????????????????# #?? | | ???????????????????????????????????????????## ##? | | ???????????????????????????????????????????# #? | | ???????????????????????????????????????????#* #? | | ???????????????????????????????????????????# #? | | ???????????????????????????????????????????# #? | | ??????????????????????????????????????????###+#### | | ??????????????????????????????????????????# | | ??????????????????????? ????????????????# | | ??????????????????????? ????????????????# "" | | ??????????????????????# ????????????????# """" | | ??????????????????????# #???????????????# """" | | ??????????????????????# #??????????????## "" | | ??????????????????????# w #??????????????# | | ??????????????????????# #??????????????## | | ??????????????????????# #???????????????# | | ??????????????????????# #???????????????######## | | ??????????????????????# #??????????????????????? | | ??????????????????????# #??????????????????????? | | ?????????????????????## ##?????????????????????? | | ????????????????????## ##????????????????????? | | ????????????????????# #??????????????????### | | ???????????????????## ##?????????????????# | | ???????????????????# #?????????????????# | | ???????????????????# @ #?????????????????# | | ???????????????????# #?????????????????# | | ????????????????"""# ###??#######???????# | | ????????????????"""## #### ##??????# | | ???????????????#"""## ## #####??# | | ???????????????# ### #??# | | ???????????????# #### W W #####+ | | ???????????????# p / | | ???????????????# / | | ???????????????# Y p /%! | | ???????????????# /!!! | | ???????????????# /*/%% | | ???????????????# ### # W # # #####+ | | ???????????????###### # # ### # #??# | | ????????????????????#### # # ### #### #####??# | | ??????????????????????# # ##?### ####??????# | | ??????????????????????# ####???#######???????# | | ??????????????????????# #????????????????????# | | ??????????????????????# #????????????????????# | | ??????????????????????# #????????????????????# | | ??????????????????????# #????????????????????# | | ??????????????????????# #????????????????????# | | ??????????????????????# #???????????????######## | | ??????????????????????# ????????????????# | | ??????????????????????# ????????????????# | +----------------------------------------------------+ Best States ------------- Heat Dissipation 142 Coolant Potential 100 Energy Generation 58 Energy Capacity 1150 Matter Stores 450 Matter Capacity 450 Sight Range 22 Robot Scan Range 15 Terrain Scan Range 20 Terrain Scan Density 210 Jamming Range 16 Cloak Strength 4 Power Amplification 40 Armor Coverage 1650 Resistance: KI 25 Resistance: TH 30 Weapon Cycling 30 Evasion (%) 50 Targeting Accuracy 20 Core Analysis 8 Recoil Reduction 4 Offensive Hacking 34 Defensive Hacking 35 Relay Coupler Types 4 Relay Coupler Value 103 Item Schematics ----------------- Hcp. Storage Unit | -10/Materials | Hacked Lrn. Tractor Beam | -8/Materials | Hacked Combat Drone Bay | -6/Data Miner | Free Lgt. Regenerative Plating | -6/Data Miner | Free Cld. Nuclear Pulse Thruster | -6/Data Miner | Free Exp. Heat Sink | -6/Data Miner | Free Tesla Bomb Launcher | -6/Data Miner | Free Imp. Gyrokinetic Inverter | -6/Data Miner | Free Imp. Cloaking Device | -6/Data Miner | Free Matter Neutralizer | -6/Data Miner | Free Imp. Weapon Cycler | -6/Data Miner | Free Antimissile System | -6/Data Miner | Free Matter Compressor | -5/Factory | Hacked Exp. Utility Shielding | -5/Factory | Hacked Hvy. Treads | -5/Factory | Hacked Robot Schematics ------------------ I-47 Archangel | -6/Data Miner | Free G-50 Soldier | -6/Data Miner | Free R-10 Processor | -6/Data Miner | Free A-15 Conveyor | -6/Data Miner | Free A-27 Freighter | -6/Data Miner | Free E-15 Imp | -6/Data Miner | Free Fabricated ------------ Lrn. Tractor Beam | x2 | -6/Factory Alien Tech Used ----------------- Core Expander Achievements -------------- None Challenges ------------ None Game ------ Seed LightpackMobileThruster Manual? 0 Play Time 03:58:23 Cumulative 915.1 hours Start 2023.03.31 @ 13:54:15 End 2023.03.31 @ 23:09:25 Sessions 9 Manual Loads 0 Difficulty Rogue Special Mode None Game No. 477 Rogue 350 Adventurer 125 Explorer 2 Win Type - Total 107 Types 85/8/7/2/2/0/0/2/1 Lore% 85 Gallery% 90 Achievement% 82 Wizard Run 0 Options --------- ASCII 0 Keyboard 1 Movement Numpad Keybinds 0 Fullscreen 1 Font 36/TerminusFine Map View 76x50 Tactical HUD 1 Map Filters NONE Filters NONE Steam 1 RUN: 5ced5c8f-4eb0-49bc-8185-bab4dabb27a1